bitfinex-derivatives/quotes_BNBF0:USTF0_20251219
["timestamp","ask_amount","ask_price","bid_price","bid_amount"]
[1766174700086,1.72973604,857.3,855.88,0.73111878]
[1766174700288,1.72973604,857.3,855.89,0.73111878]
[1766174700586,1.72973604,857.3,855.9,0.73111878]
[1766174700787,1.72973604,857.3,855.91,0.73111878]
[1766174700981,1.72973604,857.3,855.84,0.85892829]
[1766174700982,1.72973604,857.3,855.92,0.73111878]
[1766174701183,1.72973604,857.3,855.93,0.73111878]
[1766174701384,1.72973604,857.3,855.94,0.73111878]
[1766174701684,1.72973604,857.3,855.95,0.73111878]
[1766174701889,1.72973604,857.3,855.96,0.73111878]
[1766174702088,1.72973604,857.3,855.97,0.73111878]
[1766174702286,1.72973604,857.3,855.98,0.73111878]
[1766174702489,1.72973604,857.3,855.99,0.73111878]
[1766174702690,1.72973604,857.3,856.0,0.73111878]
[1766174702887,1.72973604,857.3,856.01,0.73111878]
[1766174703087,1.72973604,857.3,856.02,0.73111878]
[1766174703290,1.72973604,857.31,856.03,0.73111878]
[1766174703492,1.72973604,857.31,856.04,0.73111878]
[1766174703691,1.72973604,857.31,856.05,0.73111878]
[1766174703892,1.72973604,857.31,856.06,0.73111878]
[1766174704092,1.72973604,857.31,855.83,0.85892829]
[1766174704093,1.72973604,857.31,856.07,0.73111878]
[1766174704288,1.72973604,857.31,856.08,0.73111878]
[1766174704493,1.72973604,857.31,856.09,0.73111878]
[1766174704792,1.72973604,857.31,856.1,0.73111878]
[1766174704993,1.72973604,857.31,855.83,0.85892829]
[1766174705190,1.72973604,857.31,855.84,0.73094117]
[1766174705493,1.72973604,857.31,855.85,0.73094117]
[1766174705789,1.72973604,857.31,855.86,0.73094117]
[1766174705990,1.72973604,857.31,855.87,0.73094117]
[1766174706190,1.72973604,857.32,855.88,0.73094117]
[1766174706390,1.72973604,857.32,855.89,0.73094117]
[1766174706693,1.72973604,857.32,855.9,0.73094117]
[1766174706890,1.72973604,857.32,855.91,0.73094117]
[1766174707090,1.72973604,857.32,855.92,0.73094117]
[1766174707289,1.72973604,857.32,855.93,0.73094117]
[1766174707491,1.72973604,857.32,855.94,0.73094117]
[1766174707691,1.72973604,857.32,855.95,0.73094117]
[1766174707892,1.72973604,857.32,855.96,0.73094117]
[1766174708094,1.72973604,857.32,855.97,0.73094117]
[1766174708295,1.72973604,857.32,855.83,0.85892829]
[1766174708296,1.72973604,857.32,855.98,0.73094117]
[1766174708492,1.72973604,857.32,855.99,0.73094117]
[1766174708693,1.72973604,857.32,856.0,0.73094117]
[1766174708998,1.72973604,857.32,856.01,0.73094117]
[1766174709198,1.72973604,857.32,856.02,0.73094117]
[1766174709397,1.72973604,857.32,856.03,0.73094117]
[1766174709599,1.72973604,857.32,856.04,0.73094117]
[1766174709798,1.72973604,857.32,856.05,0.73094117]
[1766174709997,1.72973604,857.37,856.06,0.73094117]
[1766174710198,1.72973604,857.37,856.07,0.73094117]
[1766174710396,1.72973604,857.37,856.08,0.73094117]
[1766174710603,1.72973604,857.37,856.09,0.73094117]
[1766174710801,1.72973604,857.37,856.1,0.73094117]
[1766174711102,1.72973604,857.44,856.11,0.73094117]
[1766174711301,1.72973604,857.44,856.12,0.73094117]
[1766174711499,1.72973604,857.44,856.13,0.73094117]
[1766174711798,1.72973604,857.44,856.14,0.73094117]
[1766174712002,1.72973604,857.44,856.15,0.73094117]
[1766174712203,1.72973604,857.44,856.16,0.73094117]
[1766174712401,1.72973604,857.44,856.17,0.73094117]
[1766174712605,1.72973604,857.44,856.18,0.73094117]
[1766174712803,1.72973604,857.45,856.19,0.73094117]
[1766174713105,1.72973604,857.45,856.2,0.73094117]
[1766174713309,1.72973604,857.4,855.89,0.85892829]
[1766174713509,1.72973604,857.4,855.9,0.73083926]
[1766174713805,1.72973604,857.41,855.91,0.73083926]
[1766174714104,1.72973604,857.41,855.92,0.73083926]
[1766174714309,1.72973604,857.41,855.93,0.73083926]
[1766174714505,1.72973604,857.41,855.94,0.73083926]
[1766174714703,1.72973604,857.41,855.95,0.73083926]
[1766174714906,1.72973604,857.41,855.96,0.73083926]
[1766174715208,1.72973604,857.41,855.97,0.73083926]
[1766174715415,1.72973604,857.41,855.98,0.73083926]
[1766174715606,1.72973604,857.41,855.99,0.73083926]
[1766174715804,1.72973604,857.41,856.0,0.73083926]
[1766174716005,1.72973604,857.41,856.01,0.73083926]
[1766174716210,1.72973604,857.41,856.02,0.73083926]
[1766174716409,1.72973604,857.42,856.03,0.73083926]
[1766174716606,1.72973604,857.42,856.04,0.73083926]
[1766174716808,1.72973604,857.42,856.05,0.73083926]
[1766174717010,1.72973604,857.42,855.91,0.85892829]
[1766174717011,1.72973604,857.42,856.06,0.73083926]
[1766174717208,1.72973604,857.43,856.07,0.73083926]
[1766174717407,1.72973604,857.42,856.08,0.73083926]
[1766174717612,1.72973604,857.42,856.09,0.73083926]
[1766174717907,1.72973604,857.42,856.1,0.73083926]
[1766174718212,1.72973604,857.43,856.11,0.73083926]
[1766174718509,1.72973604,857.43,856.12,0.73083926]
[1766174718707,1.72973604,857.43,856.13,0.73083926]
[1766174719007,1.72973604,857.43,856.14,0.73083926]
[1766174719315,1.72973604,857.43,856.15,0.73083926]
[1766174719514,1.72973604,857.43,856.16,0.73083926]
[1766174719709,1.72973604,857.43,856.17,0.73083926]
[1766174719909,1.72973604,857.43,855.9,0.85892829]
[1766174720214,1.72973604,857.41,855.91,0.73103224]
[1766174720514,5.8284939,858.83,855.93,0.85892829]
[1766174720515,1.72973604,857.45,855.93,0.85892829]
[1766174720720,1.72973604,857.45,855.94,0.73103224]
[1766174720912,1.72973604,857.45,855.95,0.73103224]
[1766174721111,1.72973604,857.45,855.96,0.73103224]
[1766174721314,1.72973604,857.45,855.97,0.73103224]
[1766174721511,0.01324887,858.31,855.48,9.80596719]
[1766174721512,1.72973604,857.56,856.03,0.85892829]
[1766174721812,1.72973604,857.56,856.04,0.73103224]
[1766174722012,1.72973604,857.56,856.05,0.73103224]
[1766174722316,1.72973604,857.68,856.15,0.85892829]
[1766174722616,1.72973604,857.69,856.16,0.73103224]
[1766174722812,1.72973604,857.68,856.17,0.73103224]
[1766174723011,1.72973604,857.68,856.18,0.73103224]
[1766174723211,1.72973604,857.69,856.19,0.73103224]
[1766174723412,1.72973604,857.69,856.2,0.73103224]
[1766174723614,0.20307116,857.32,856.21,0.73103224]
[1766174723811,0.20307116,857.32,856.22,0.73103224]
[1766174724112,0.20307116,857.32,856.23,0.73103224]
[1766174724411,0.20307116,857.32,856.24,0.73103224]
[1766174724611,0.20307116,857.32,856.25,0.73103224]
[1766174724916,0.20307116,857.32,856.26,0.73103224]
[1766174725217,0.20307116,857.32,856.27,0.73103224]
[1766174725516,0.20307116,857.32,856.28,0.73103224]
[1766174725713,0.20307116,857.32,856.29,0.73103224]
[1766174725917,0.20307116,857.32,856.3,0.73103224]
[1766174726214,0.20307116,857.32,856.31,0.73103224]
[1766174726418,0.20307116,857.32,855.48,9.80596719]
[1766174726419,0.20307116,857.32,856.02,0.85892829]
[1766174726617,0.20307116,857.32,856.03,0.73038819]
[1766174726816,0.20307116,857.32,856.04,0.73038819]
[1766174727215,0.20307116,857.32,856.05,0.73038819]
[1766174727514,0.20307116,857.32,856.06,0.73038819]
[1766174727715,0.20307116,857.32,856.07,0.73038819]
[1766174727916,0.20307116,857.32,856.08,0.73038819]
[1766174728115,0.20307116,857.32,856.09,0.73038819]
[1766174728316,0.20307116,857.32,856.1,0.73038819]
[1766174728521,0.20307116,857.32,856.11,0.73038819]
[1766174728720,0.20307116,857.32,856.12,0.73038819]
[1766174728920,0.20307116,857.32,856.13,0.73038819]
[1766174729122,0.20307116,857.32,856.14,0.73045336]
[1766174729420,0.20307116,857.32,856.15,0.73045336]
[1766174729619,0.20307116,857.32,856.16,0.73045336]
[1766174729822,0.20307116,857.32,856.17,0.73045336]
[1766174730023,0.20307116,857.32,856.18,0.73045336]
[1766174730222,0.20307116,857.32,856.19,0.73045336]
[1766174730425,0.20307116,857.32,856.2,0.73045336]
[1766174730623,0.20307116,857.32,856.21,0.73045336]
[1766174730824,0.20307116,857.32,856.22,0.73045336]
[1766174731026,0.20307116,857.32,855.91,0.86206049]
[1766174731328,0.20307116,857.32,855.92,0.7304677]
[1766174731632,0.20307116,857.32,855.93,0.7304677]
[1766174731825,0.20307116,857.32,855.94,0.7304677]
[1766174732025,0.20307116,857.32,855.95,0.7304677]
[1766174732326,0.20307116,857.32,855.96,0.7304677]
[1766174732526,0.20307116,857.32,855.97,0.7304677]
[1766174732821,0.20307116,857.32,855.98,0.7304677]
[1766174733121,0.20307116,857.32,855.99,0.7304677]
[1766174733325,0.20307116,857.32,856.0,0.7304677]
[1766174733524,0.20307116,857.32,856.01,0.7304677]
[1766174733820,0.20307116,857.32,856.02,0.7304677]
[1766174734022,0.20307116,857.32,856.03,0.7304677]
[1766174734321,0.20307116,857.32,856.04,0.7304677]
[1766174734522,0.20307116,857.32,856.05,0.7304677]
[1766174734825,0.20307116,857.32,856.06,0.7304677]
[1766174735025,0.20307116,857.32,856.07,0.7304677]
[1766174735326,0.20307116,857.32,856.08,0.7304677]
[1766174735625,0.20307116,857.32,855.85,0.86206049]
[1766174735626,0.20307116,857.32,856.09,0.7304677]
[1766174735823,0.20307116,857.32,856.1,0.7304677]
[1766174736024,0.20307116,857.32,856.11,0.7304677]
[1766174736226,0.20307116,857.32,856.12,0.7304677]
[1766174736426,0.20307116,857.32,856.13,0.7304677]
[1766174736627,0.20307116,857.32,855.86,0.86206049]
[1766174736827,0.20307116,857.32,855.87,0.73123985]
[1766174737026,0.20307116,857.32,855.88,0.73123985]
[1766174737323,0.20307116,857.32,855.89,0.73123985]
[1766174737526,0.20307116,857.32,855.9,0.73123985]
[1766174737726,0.20307116,857.32,855.91,0.73123985]
[1766174737927,0.20307116,857.32,855.92,0.73123985]
[1766174738226,0.20307116,857.32,855.93,0.73123985]
[1766174738426,0.20307116,857.32,855.94,0.73123985]
[1766174738626,0.20307116,857.32,855.95,0.73123985]
[1766174738826,0.20307116,857.32,855.96,0.73123985]
[1766174739027,0.20307116,857.32,855.97,0.73123985]
[1766174739227,0.20307116,857.32,855.98,0.73123985]
[1766174739424,0.20307116,857.32,855.99,0.73123985]
[1766174739729,0.20307116,857.32,856.0,0.73123985]
[1766174739928,0.20307116,857.32,856.01,0.73123985]
[1766174740132,0.20307116,857.32,856.02,0.73123985]
[1766174740329,0.20307116,857.32,856.03,0.73123985]
[1766174740529,0.20307116,857.32,856.04,0.73123985]
[1766174740832,0.20307116,857.32,856.05,0.73123985]
[1766174741029,0.20307116,857.32,856.06,0.73123985]
[1766174741234,1.72973604,857.29,856.07,0.73123985]
[1766174741533,1.72973604,857.29,856.08,0.73123985]
[1766174741733,1.72973604,857.29,856.09,0.73123985]
[1766174741935,1.72973604,857.29,856.1,0.73123985]
[1766174742131,1.72973604,857.29,856.11,0.73123985]
[1766174742335,1.72973604,857.28,856.12,0.73123985]
[1766174742531,1.72973604,857.28,856.13,0.73123985]
[1766174742735,1.72973604,857.28,856.14,0.73123985]
[1766174742936,1.72973604,857.28,856.15,0.73123985]
[1766174743233,1.72973604,857.27,856.16,0.73284671]
[1766174743436,1.72973604,857.27,855.89,0.86206049]
[1766174743637,1.72973604,857.27,855.9,0.73279622]
[1766174743935,1.72973604,857.27,855.91,0.73279622]
[1766174744132,1.72973604,857.27,855.92,0.73279622]
[1766174744337,1.72973604,857.26,855.93,0.73279622]
[1766174744536,1.72973604,857.26,855.94,0.73279622]
[1766174744734,1.72973604,857.26,855.95,0.73279622]
[1766174744936,1.72973604,857.26,855.96,0.73279622]
[1766174745133,1.72973604,857.26,855.97,0.73279622]
[1766174745440,1.72973604,857.24,855.98,0.73279622]
[1766174745637,1.72973604,857.24,855.99,0.73279622]
[1766174745833,1.72973604,857.24,855.91,0.86206049]
[1766174745834,1.72973604,857.24,856.0,0.73279622]
[1766174746038,1.72973604,857.24,856.01,0.73279622]
[1766174746238,1.72973604,857.24,856.02,0.73279622]
[1766174746433,1.72973604,857.24,855.91,0.86206049]
[1766174746434,1.72973604,857.24,856.03,0.73279622]
[1766174746637,1.72973604,857.24,856.04,0.73279622]
[1766174746837,1.72973604,857.24,856.05,0.73279622]
[1766174747038,1.72973604,857.28,856.06,0.73279622]
[1766174747239,1.72973604,857.28,856.07,0.73279622]
[1766174747438,0.20307116,857.32,855.48,9.80596719]
[1766174747439,1.72973604,857.31,856.08,0.73279622]
[1766174747637,1.72973604,857.31,856.09,0.73279622]
[1766174747840,1.72973604,857.31,856.1,0.73279622]
[1766174748038,1.72973604,857.31,856.11,0.73279622]
[1766174748342,0.20307116,857.32,856.12,0.73279622]
[1766174748540,0.20307116,857.32,856.13,0.73279622]
[1766174748843,0.20307116,857.32,856.14,0.73279622]
[1766174749137,0.20307116,857.32,856.15,0.73279622]
[1766174749351,0.20307116,857.32,856.16,0.73279622]
[1766174749638,0.20307116,857.32,856.17,0.73279622]
[1766174749842,0.20307116,857.32,856.18,0.73279622]
[1766174750039,0.20307116,857.32,856.19,0.73279622]
[1766174750243,0.20307116,857.32,856.2,0.73279622]
[1766174750444,0.20307116,857.32,856.21,0.73279622]
[1766174750744,0.20307116,857.32,856.22,0.73279622]
[1766174750938,0.20307116,857.32,856.23,0.73279622]
[1766174751139,0.20307116,857.32,856.24,0.73279622]
[1766174751341,0.20307116,857.32,856.25,0.73279622]
[1766174751542,0.20307116,857.32,856.26,0.73279622]
[1766174751743,0.20307116,857.32,856.27,0.73279622]
[1766174751945,0.20307116,857.32,856.28,0.73279622]
[1766174752142,0.20307116,857.32,856.29,0.73279622]
[1766174752345,0.20307116,857.32,856.01,0.86206049]
[1766174752546,0.20307116,857.32,856.02,0.73300204]
[1766174752742,0.20307116,857.32,856.03,0.73300204]
[1766174752947,0.20307116,857.32,856.04,0.73300204]
[1766174753140,0.20307116,857.32,856.05,0.73300204]
[1766174753345,0.20307116,857.32,856.06,0.73300204]
[1766174753546,0.20307116,857.32,856.07,0.73300204]
[1766174753746,0.20307116,857.32,856.08,0.73300204]
[1766174753946,0.20307116,857.32,856.09,0.73300204]
[1766174754145,0.20307116,857.32,856.1,0.73300204]
[1766174754447,0.20307116,857.32,856.11,0.73300204]
[1766174754645,0.20307116,857.32,856.12,0.73300204]
[1766174754845,0.20307116,857.32,856.13,0.73300204]
[1766174755045,0.20307116,857.32,856.14,0.73300204]
[1766174755345,0.20307116,857.32,856.15,0.73300204]
[1766174755546,0.20307116,857.32,856.16,0.73300204]
[1766174755746,0.20307116,857.32,856.17,0.73300204]
[1766174756046,0.20307116,857.32,856.18,0.73300204]
[1766174756346,0.20307116,857.32,856.19,0.73300204]
[1766174756547,0.20307116,857.32,856.2,0.73300204]
[1766174756743,0.20307116,857.32,856.21,0.73300204]
[1766174756944,0.20307116,857.32,856.22,0.73300204]
[1766174757144,0.20307116,857.32,856.23,0.73300204]
[1766174757343,0.20307116,857.32,856.24,0.73300204]
[1766174757545,0.20307116,857.32,856.25,0.73300204]
[1766174757748,0.20307116,857.32,856.26,0.73300204]
[1766174757949,0.20307116,857.32,856.27,0.73300204]
[1766174758249,0.20307116,857.32,856.28,0.73300204]
[1766174758550,0.20307116,857.32,856.29,0.73300204]
[1766174758749,0.20307116,857.32,856.01,0.86206049]
[1766174758949,0.20307116,857.32,856.02,0.73334232]
[1766174759248,0.20307116,857.32,856.03,0.73334232]
[1766174759548,0.20307116,857.32,856.04,0.73334232]
[1766174759745,0.20307116,857.32,856.05,0.73334232]
[1766174760048,1.9328072,857.32,856.06,0.73334232]
[1766174760246,1.9328072,857.32,856.07,0.73334232]
[1766174760546,1.9328072,857.32,856.08,0.73334232]
[1766174760749,1.9328072,857.32,856.09,0.73334232]
[1766174760945,1.9328072,857.32,856.1,0.73334232]
[1766174761149,1.9328072,857.32,856.11,0.73334232]
[1766174761444,1.9328072,857.32,856.12,0.73334232]
[1766174761649,1.9328072,857.32,856.13,0.73334232]
[1766174761850,1.9328072,857.32,856.14,0.73334232]
[1766174762050,1.9328072,857.32,856.15,0.73334232]
[1766174762345,1.9328072,857.32,856.16,0.73334232]
[1766174762545,1.9328072,857.32,856.17,0.73334232]
[1766174762848,1.9328072,857.32,856.18,0.73334232]
[1766174763053,1.72973604,857.29,856.19,0.73334232]
[1766174763255,1.72973604,857.29,856.2,0.73334232]
[1766174763456,1.72973604,857.25,856.21,0.73334232]
[1766174763652,1.72973604,857.25,855.93,0.86206049]
[1766174763854,1.72973604,857.25,855.94,0.73339482]
[1766174764053,1.72973604,857.25,855.95,0.73339482]
[1766174764251,1.72973604,857.25,855.96,0.73339482]
[1766174764453,1.72973604,857.25,855.97,0.73339482]
[1766174764654,1.72973604,857.25,855.98,0.73339482]
[1766174764854,1.72973604,857.25,855.99,0.73339482]
[1766174765056,1.72973604,857.25,856.0,0.73339482]
[1766174765252,1.72973604,857.25,856.01,0.73339482]
[1766174765454,1.72973604,857.25,856.02,0.73339482]
[1766174765752,1.72973604,857.25,856.03,0.73339482]
[1766174765952,1.72973604,857.25,856.04,0.73339482]
[1766174766155,1.72973604,857.25,856.05,0.73339482]
[1766174766353,1.72973604,857.25,856.06,0.73332095]
[1766174766654,1.72973604,857.25,856.07,0.73332095]
[1766174766857,1.72973604,857.25,856.08,0.73332095]
[1766174767156,1.72973604,857.25,856.09,0.73332095]
[1766174767355,1.72973604,857.25,856.1,0.73332095]
[1766174767554,1.72973604,857.25,856.11,0.73332095]
[1766174767757,1.72973604,857.25,856.12,0.73332095]
[1766174767953,1.72973604,857.25,856.13,0.73332095]
[1766174768156,1.72973604,857.25,856.14,0.73332095]
[1766174768455,1.72973604,857.25,856.15,0.73332095]
[1766174768658,1.72973604,857.25,856.16,0.73332095]
[1766174768952,1.72973604,857.25,856.17,0.73332095]
[1766174769157,1.72973604,857.25,856.18,0.73332095]
[1766174769357,1.72973604,857.25,856.19,0.73332095]
[1766174769558,1.72973604,857.25,856.2,0.73332095]
[1766174769758,1.72973604,857.25,856.21,0.73332095]
[1766174769960,1.72973604,857.2,855.88,0.86459558]
[1766174770160,1.72973604,857.2,855.89,0.7333492]
[1766174770368,1.72973604,857.2,855.9,0.7333492]
[1766174770561,1.72973604,857.2,855.91,0.7333492]
[1766174770761,1.72973604,857.2,855.92,0.7333492]
[1766174770961,1.72973604,857.2,855.93,0.7333492]
[1766174771261,1.72973604,857.2,855.94,0.7333492]
[1766174771562,1.72973604,857.2,855.95,0.7333492]
[1766174771867,1.72973604,857.2,855.96,0.7333492]
[1766174772058,1.72973604,857.2,855.97,0.7333492]
[1766174772257,1.72973604,857.2,855.98,0.7333492]
[1766174772460,1.72973604,857.2,855.99,0.7333492]
[1766174772757,1.72973604,857.2,856.0,0.7333492]
[1766174772958,1.72973604,857.2,856.01,0.7333492]
[1766174773157,1.72973604,857.2,856.02,0.7333492]
[1766174773357,1.72973604,857.2,856.03,0.7333492]
[1766174773658,1.72973604,857.2,856.04,0.7333492]
[1766174773959,1.72973604,857.2,856.05,0.7333492]
[1766174774261,1.72973604,857.2,856.06,0.7333492]
[1766174774461,1.72973604,857.2,856.07,0.7333492]
[1766174774658,1.72973604,857.2,856.08,0.7333492]
[1766174774961,1.72973604,857.2,856.09,0.7333492]
[1766174775257,1.72973604,857.2,856.1,0.7333492]
[1766174775457,1.72973604,857.2,856.11,0.7333492]
[1766174775661,1.72973604,857.2,856.12,0.7333492]
[1766174775862,1.72973604,857.2,856.13,0.7333492]
[1766174776062,1.72973604,857.2,856.14,0.7333492]
[1766174776358,1.72973604,857.2,856.15,0.7333492]
[1766174776659,1.72973604,857.2,855.87,0.86459558]
[1766174776862,1.72973604,857.2,855.88,1.5984408]
[1766174777062,1.72973604,857.2,855.89,0.73384522]
[1766174777264,1.72973604,857.2,855.9,0.73384522]
[1766174777565,1.72973604,857.2,855.91,0.73384522]
[1766174777860,1.72973604,857.2,855.92,0.73384522]
[1766174778059,1.72973604,857.21,855.93,0.73384522]
[1766174778259,1.72973604,857.21,855.94,0.73384522]
[1766174778460,1.72973604,857.21,855.95,0.73384522]
[1766174778662,1.72973604,857.21,855.96,0.73384522]
[1766174778859,1.72973604,857.2,855.97,0.73384522]
[1766174779059,1.72973604,857.2,855.98,0.73384522]
[1766174779360,1.72973604,857.21,855.99,0.73384522]
[1766174779560,1.72973604,857.21,856.0,0.73384522]
[1766174779761,1.72973604,857.2,856.01,0.73384522]
[1766174779962,1.72973604,857.27,856.02,0.73384522]
[1766174780164,1.72973604,857.27,856.03,0.73384522]
[1766174780461,1.72973604,857.27,856.04,0.73384522]
[1766174780764,1.72973604,857.27,856.05,0.73384522]
[1766174780965,1.72973604,857.27,856.06,0.73384522]
[1766174781166,1.72973604,857.27,856.07,0.73384522]
[1766174781462,1.72973604,857.27,855.94,0.86459558]
[1766174781463,1.72973604,857.17,856.08,0.73384522]
[1766174781662,1.72973604,857.11,855.77,0.86459558]
[1766174781866,1.72973604,857.08,855.78,0.73471357]
[1766174782062,1.72973604,857.08,855.79,0.73471357]
[1766174782264,1.72973604,857.05,855.8,0.73471357]
[1766174782565,1.72973604,857.05,855.81,0.73471357]
[1766174782765,1.72973604,857.05,855.82,0.73471357]
[1766174783062,1.72973604,857.05,855.83,0.73471357]
[1766174783263,1.72973604,857.06,855.84,0.73471357]
[1766174783566,1.72973604,857.06,855.85,0.73471357]
[1766174783865,1.72973604,857.06,855.86,0.73471357]
[1766174784065,1.72973604,857.06,855.87,0.73471357]
[1766174784266,1.72973604,857.06,855.88,0.73471357]
[1766174784565,1.72973604,857.06,855.89,0.73471357]
[1766174784765,1.72973604,857.06,855.9,0.73471357]
[1766174784961,1.72973604,857.06,855.91,0.73471357]
[1766174785165,1.72973604,857.05,855.92,0.73471357]
[1766174785362,1.72973604,857.05,855.93,0.73471357]
[1766174785563,1.72973604,857.05,855.94,0.73471357]
[1766174785765,1.72973604,857.05,855.95,0.73471357]
[1766174785965,1.72973604,857.05,855.96,0.73471357]
[1766174786164,1.72973604,857.05,855.97,0.73471357]
[1766174786365,1.72973604,857.05,855.98,0.73471357]
[1766174786568,1.72973604,857.05,855.71,0.86459558]
[1766174786868,1.72973604,857.05,855.72,0.73416664]
[1766174787067,1.72973604,857.05,855.73,0.73416664]
[1766174787367,1.72973604,857.06,855.74,0.73416664]
[1766174787567,1.72973604,857.06,855.75,0.73416664]
[1766174787762,1.72973604,857.06,855.76,0.73416664]
[1766174787966,1.72973604,857.06,855.77,0.73416664]
[1766174788167,1.72973604,857.06,855.78,0.73416664]
[1766174788464,1.72973604,857.06,855.79,0.73416664]
[1766174788665,1.72973604,857.06,855.8,0.73416664]
[1766174788864,1.72973604,857.06,855.81,0.73416664]
[1766174789063,1.72973604,857.06,855.82,0.73416664]
[1766174789267,1.72973604,857.06,855.83,0.73416664]
[1766174789468,1.72973604,857.06,855.84,0.73416664]
[1766174789666,1.72973604,857.06,855.85,0.73416664]
[1766174789865,1.72973604,857.06,855.86,0.73416664]
[1766174790065,1.72973604,857.05,855.87,0.73416664]
[1766174790269,1.72973604,857.06,855.88,0.73416664]
[1766174790469,1.72973604,857.06,855.89,0.73416664]
[1766174790666,1.72973604,857.06,855.9,0.73416664]
[1766174790871,1.72973604,857.06,855.91,0.73416664]
[1766174791070,1.72973604,857.06,855.92,0.73416664]
[1766174791273,1.72973604,857.06,855.93,0.73416664]
[1766174791467,1.72973604,857.06,855.94,0.73416664]
[1766174791668,1.72973604,857.06,855.95,0.73416664]
[1766174791867,1.72973604,857.06,855.96,0.73416664]
[1766174792169,1.72973604,857.06,855.97,0.73416664]
[1766174792372,1.72973604,857.06,855.7,0.86459558]
[1766174792673,1.72973604,857.06,855.71,0.73421379]
[1766174792871,1.72973604,857.06,855.72,0.73421379]
[1766174793173,1.72973604,857.07,855.73,0.73421379]
[1766174793374,1.72973604,857.07,855.74,0.73421379]
[1766174793671,1.72973604,857.07,855.75,0.73421379]
[1766174793873,1.72973604,857.07,855.76,0.73421379]
[1766174794074,1.72973604,857.07,855.77,0.73421379]
[1766174794273,1.72973604,857.07,855.78,0.73421379]
[1766174794470,1.72973604,857.07,855.79,0.73421379]
[1766174794670,1.72973604,857.07,855.8,0.73421379]
[1766174794875,1.72973604,857.07,855.81,0.73421379]
[1766174795172,1.72973604,857.07,855.82,0.73421379]
[1766174795368,1.72973604,857.07,855.83,0.73421379]
[1766174795573,1.72973604,857.07,855.84,0.73421379]
[1766174795869,1.72973604,857.07,855.85,0.73421379]
[1766174796068,1.72973604,857.07,855.86,0.73421379]
[1766174796272,1.72973604,857.07,855.87,0.73421379]
[1766174796472,1.72973604,856.99,855.88,0.73421379]
[1766174796674,1.72973604,856.99,855.61,0.86459558]
[1766174796969,1.72973604,856.99,855.62,0.73422969]
[1766174797173,1.72973604,857.0,855.63,0.73422969]
[1766174797373,1.72973604,857.0,855.64,0.73422969]
[1766174797575,1.72973604,857.0,855.65,0.73422969]
[1766174797776,1.72973604,857.0,855.66,0.73422969]
[1766174797975,1.72973604,857.0,855.67,0.73422969]
[1766174798271,1.72973604,857.0,855.68,0.73422969]
[1766174798572,1.72973604,857.0,855.69,0.73422969]
[1766174798768,1.72973604,857.0,855.7,0.73422969]
[1766174798974,1.72973604,857.0,855.71,0.73422969]
[1766174799175,1.72973604,857.01,855.72,0.73422969]
[1766174799373,1.72973604,857.01,855.73,0.73422969]
[1766174799572,1.72973604,857.01,855.74,0.73422969]
[1766174799872,1.72973604,857.01,855.75,0.73422969]
[1766174800076,1.72973604,857.01,855.76,0.73422969]
[1766174800274,1.72973604,857.01,855.77,0.73422969]
[1766174800473,1.72973604,857.01,855.59,0.86459558]
[1766174800474,1.72973604,857.01,855.78,0.73422969]
[1766174800677,1.72973604,857.01,855.79,0.73422969]
[1766174800876,1.72973604,857.01,855.8,0.73422969]
[1766174801078,1.72973604,857.01,855.81,0.73422969]
[1766174801278,1.72973604,857.01,855.82,0.73422969]
[1766174801477,1.72973604,857.01,855.83,0.73422969]
[1766174801778,1.72973604,857.12,855.84,0.73422969]
[1766174801978,0.20307116,857.32,855.85,0.73422969]
[1766174801979,1.72973604,857.13,855.85,0.73422969]
[1766174802179,1.72973604,857.14,855.86,0.73422969]
[1766174802375,1.72973604,857.14,855.87,0.73422969]
[1766174802580,1.72973604,857.14,855.7,0.86459558]
[1766174802581,1.72973604,857.14,855.88,0.73422969]
[1766174802780,1.72973604,857.14,855.89,0.73422969]
[1766174802976,1.72973604,857.14,855.9,0.73422969]
[1766174803179,1.72973604,857.14,855.91,0.73422969]
[1766174803378,1.72973604,857.19,855.92,0.73422969]
[1766174803576,1.72973604,857.19,855.93,0.73422969]
[1766174803876,1.72973604,857.19,855.94,0.73422969]
[1766174804078,1.72973604,857.19,855.95,0.73422969]
[1766174804277,1.72973604,857.19,855.96,0.73422969]
[1766174804476,1.72973604,857.19,855.97,0.73422969]
[1766174804678,1.72973604,857.19,855.98,0.73422969]
[1766174804878,1.72973604,857.19,855.99,0.73422969]
[1766174805077,1.72973604,857.19,856.0,0.73422969]
[1766174805376,1.72973604,857.19,856.01,0.73422969]
[1766174805578,1.72973604,857.19,856.02,0.73422969]
[1766174805781,1.72973604,857.19,856.03,0.73422969]
[1766174805981,1.72973604,857.19,855.76,0.86459558]
[1766174806180,1.72973604,857.19,855.77,0.73359231]
[1766174806377,1.72973604,857.19,855.78,0.73359231]
[1766174806582,1.72973604,857.19,855.79,0.73359231]
[1766174806779,1.72973604,857.19,855.8,0.73359231]
[1766174806982,1.72973604,857.19,855.81,0.73359231]
[1766174807179,1.72973604,857.19,855.82,0.73359231]
[1766174807483,1.72973604,857.19,855.83,0.73359231]
[1766174807779,1.72973604,857.19,855.84,0.73359231]
[1766174807980,1.72973604,857.19,855.85,0.73359231]
[1766174808181,1.72973604,857.19,855.86,0.73359231]
[1766174808380,1.72973604,857.03,855.87,0.73359231]